fUST/lending_fUST_20241228
["ID","MTS","AMOUNT","RATE_DAILY","PERIOD"]
[346895884,1735346974432,-500.0,9.999e-05,2]
[346895885,1735346974453,-174.43499517,9.999e-05,2]
[346896148,1735347041863,-162.47820984,9.626e-05,2]
[346896150,1735347041873,-500.0,9.723e-05,2]
[346896152,1735347041882,-500.0,9.723e-05,2]
[346896154,1735347041891,-500.0,9.723e-05,2]
[346896156,1735347041900,-181.83639104,9.723e-05,2]
[346896158,1735347041910,-500.0,9.723e-05,2]
[346896160,1735347041919,-500.0,9.723e-05,2]
[346896162,1735347041928,-500.0,9.723e-05,2]
[346896164,1735347041937,-500.0,9.723e-05,2]
[346896166,1735347041947,-501.10454234,9.724e-05,2]
[346896168,1735347041957,-500.0,9.724e-05,2]
[346896170,1735347041966,-500.0,9.724e-05,2]
[346896172,1735347041975,-500.0,9.724e-05,2]
[346896174,1735347041985,-500.0,9.724e-05,2]
[346896176,1735347041995,-1441.32,9.724e-05,2]
[346896178,1735347042004,-836.56,9.726e-05,2]
[346896180,1735347042014,-500.0,9.726e-05,2]
[346896182,1735347042023,-500.0,9.997e-05,2]
[346896184,1735347042034,-500.0,9.997e-05,2]
[346896186,1735347042044,-500.0,9.997e-05,2]
[346896188,1735347042054,-300.0,9.997e-05,2]
[346896191,1735347042064,-500.0,9.997e-05,2]
[346896193,1735347042073,-500.0,9.997e-05,2]
[346896194,1735347042082,-570.05,9.997e-05,2]
[346896196,1735347042091,-500.0,9.998e-05,2]
[346896198,1735347042100,-500.0,9.998e-05,2]
[346896200,1735347042110,-500.0,9.998e-05,2]
[346896202,1735347042119,-500.0,9.998e-05,2]
[346896204,1735347042129,-1441.32,9.998e-05,2]
[346896206,1735347042138,-104.98483042,9.999e-05,2]
[346896208,1735347042148,-500.0,9.999e-05,2]
[346896211,1735347042158,-502.21916547,9.999e-05,2]
[346896212,1735347042168,-373.00497361,9.999e-05,2]
[346896214,1735347042177,-500.0,9.999e-05,2]
[346896216,1735347042186,-500.0,9.999e-05,2]
[346896218,1735347042196,-500.0,9.999e-05,2]
[346896231,1735347042300,-500.0,9.999e-05,2]
[346896232,1735347042316,-500.0,9.999e-05,2]
[346896233,1735347042325,-500.0,9.999e-05,2]
[346896234,1735347042335,-500.0,9.999e-05,2]
[346896235,1735347042345,-500.0,9.999e-05,2]
[346896236,1735347042354,-500.0,9.999e-05,2]
[346896237,1735347042364,-500.0,9.999e-05,2]
[346896238,1735347042373,-1000.0,9.999e-05,2]
[346896239,1735347042383,-177.19306644,0.0001,2]
[346896240,1735347042392,-500.0,0.0001,2]
[346896241,1735347042401,-559.54520479,0.0001,2]
[346896242,1735347042411,-500.0,0.0001,2]
[346896243,1735347042420,-305.91873109,0.0001,2]
[346896244,1735347042429,-500.0,0.0001,2]
[346896245,1735347042438,-609.26199984,0.0001,2]
[346896246,1735347042447,-181.63,0.0001,2]
[346896247,1735347042457,-500.0,0.0001,2]
[346896248,1735347042467,-836.56,0.0001,2]
[346896249,1735347042476,-500.0,0.00010001,2]
[346896250,1735347042485,-662.92,0.00010271,2]
[346896252,1735347042496,-500.0,0.00010271,2]
[346896253,1735347042505,-371.66943355,0.00010271,2]
[346896255,1735347042516,-500.0,0.00010271,2]
[346896257,1735347042533,-500.0,0.00010271,2]
[346896259,1735347042543,-500.0,0.00010271,2]
[346896261,1735347042552,-541.48,0.00010271,2]
[346896263,1735347042562,-500.0,0.00010271,2]
[346896265,1735347042571,-500.0,0.00010271,2]
[346896267,1735347042581,-500.0,0.00010271,2]
[346896269,1735347042590,-507.44,0.00010271,2]
[346896271,1735347042599,-500.0,0.00010271,2]
[346896273,1735347042608,-500.0,0.00010271,2]
[346896275,1735347042618,-500.0,0.00010271,2]
[346896277,1735347042627,-500.0,0.00010271,2]
[346896279,1735347042636,-500.0,0.00010272,2]
[346896281,1735347042646,-500.0,0.00010272,2]
[346896283,1735347042655,-500.0,0.00010272,2]
[346896285,1735347042664,-500.0,0.00010272,2]
[346896287,1735347042674,-500.0,0.00010272,2]
[346896289,1735347042684,-500.0,0.00010272,2]
[346896291,1735347042693,-500.0,0.00010272,2]
[346896293,1735347042703,-500.0,0.00010272,2]
[346896295,1735347042712,-500.0,0.00010272,2]
[346896297,1735347042721,-500.0,0.00010272,2]
[346896299,1735347042730,-500.0,0.00010272,2]
[346896301,1735347042740,-500.0,0.00010272,2]
[346896303,1735347042750,-500.0,0.00010272,2]
[346896306,1735347042759,-575.32,0.00010272,2]
[346896308,1735347042768,-197.98,0.00010272,2]
[346896311,1735347042777,-500.0,0.00010272,2]
[346896314,1735347042787,-500.0,0.00010272,2]
[346896316,1735347042796,-393.37480003,0.00010272,2]
[346896318,1735347042805,-500.0,0.00010272,2]
[346896320,1735347042814,-500.0,0.00010272,2]
[346896322,1735347042823,-500.0,0.00010272,2]
[346896324,1735347042833,-432.05,0.00010272,2]
[346896326,1735347042842,-500.0,0.00010272,2]
[346896328,1735347042851,-326.72,0.00010272,2]
[346896330,1735347042860,-500.0,0.00010272,2]
[346896332,1735347042870,-500.0,0.00010272,2]
[346896334,1735347042879,-465.96123078,0.00010272,2]
[346896336,1735347042888,-500.0,0.00010272,2]
[346896338,1735347042897,-500.0,0.00010272,2]
[346896340,1735347042907,-500.0,0.00010272,2]
[346896342,1735347042916,-500.0,0.00010272,2]
[346896344,1735347042925,-500.0,0.00010272,2]
[346896346,1735347042934,-5720.24,0.00010272,2]
[346896348,1735347042943,-500.0,0.00010272,2]
[346896350,1735347042953,-622.11250744,0.00010272,2]
[346896352,1735347042962,-500.0,0.00010272,2]
[346896354,1735347042971,-500.0,0.00010272,2]
[346896356,1735347042980,-500.0,0.00010272,2]
[346896358,1735347042989,-1441.32,0.00010272,2]
[346896360,1735347042999,-242.82,0.00010273,2]
[346896362,1735347043008,-500.0,0.00010273,2]
[346896364,1735347043017,-500.0,0.00010273,2]
[346896366,1735347043026,-500.0,0.00010273,2]
[346896368,1735347043035,-500.0,0.00010273,2]
[346896370,1735347043045,-500.0,0.00010273,2]
[346896372,1735347043054,-500.0,0.00010273,2]
[346896374,1735347043063,-500.0,0.00010273,2]
[346896376,1735347043073,-500.0,0.00010273,2]
[346896378,1735347043082,-154.75,0.00010273,2]
[346896380,1735347043091,-500.0,0.00010273,2]
[346896382,1735347043100,-500.0,0.00010273,2]
[346896384,1735347043110,-500.0,0.00010273,2]
[346896386,1735347043119,-500.0,0.00010273,2]
[346896388,1735347043128,-417.3165123,0.00010273,2]
[346896390,1735347043137,-500.0,0.00010273,2]
[346896392,1735347043146,-1000.0,0.00010273,2]
[346896394,1735347043155,-500.0,0.00010274,2]
[346896397,1735347043165,-500.0,0.00010274,2]
[346896399,1735347043174,-836.56,0.00010274,2]
[346896400,1735347043183,-500.0,0.00010275,2]
[346896402,1735347043193,-500.0,0.00010356,2]
[346896404,1735347043202,-500.0,0.00010498,2]
[346896406,1735347043211,-500.0,0.00010498,2]
[346896408,1735347043220,-662.92,0.00010545,2]
[346896410,1735347043229,-500.0,0.00010545,2]
[346896412,1735347043239,-500.0,0.00010545,2]
[346896414,1735347043247,-500.0,0.00010545,2]
[346896416,1735347043257,-500.0,0.00010545,2]
[346896418,1735347043266,-500.0,0.00010545,2]
[346896420,1735347043275,-507.44,0.00010545,2]
[346896422,1735347043285,-500.0,0.00010545,2]
[346896424,1735347043294,-500.0,0.00010545,2]
[346896427,1735347043304,-236.0,0.00010545,2]
[346896429,1735347043313,-500.0,0.00010546,2]
[346896431,1735347043323,-500.0,0.00010546,2]
[346896433,1735347043332,-500.0,0.00010546,2]
[346896435,1735347043342,-500.0,0.00010546,2]
[346896437,1735347043351,-500.0,0.00010546,2]
[346896439,1735347043360,-500.0,0.00010546,2]
[346896441,1735347043369,-500.0,0.00010546,2]
[346896443,1735347043378,-500.0,0.00010546,2]
[346896445,1735347043388,-500.0,0.00010546,2]
[346896447,1735347043397,-500.0,0.00010546,2]
[346896449,1735347043406,-500.0,0.00010546,2]
[346896451,1735347043416,-500.0,0.00010546,2]
[346896453,1735347043425,-500.0,0.00010546,2]
[346896455,1735347043439,-500.0,0.00010546,2]
[346896458,1735347043448,-604.77,0.00010546,2]
[346896461,1735347043458,-500.0,0.00010546,2]
[346896463,1735347043467,-500.0,0.00010546,2]
[346896465,1735347043478,-500.0,0.00010546,2]
[346896467,1735347043487,-500.0,0.00010546,2]
[346896469,1735347043496,-5720.24,0.00010546,2]
[346896471,1735347043505,-500.0,0.00010546,2]
[346896473,1735347043515,-500.0,0.00010546,2]
[346896475,1735347043525,-500.0,0.00010546,2]
[346896477,1735347043534,-202.86,0.00010546,2]
[346896479,1735347043543,-1441.32,0.00010546,2]
[346896481,1735347043552,-599.24,0.00010547,2]
[346896483,1735347043562,-511.88864727,0.00010547,2]
[346896485,1735347043571,-500.0,0.00010547,2]
[346896487,1735347043581,-585.34,0.00010547,2]
[346896489,1735347043591,-500.0,0.00010547,2]
[346896491,1735347043600,-600.32,0.00010547,2]
[346896493,1735347043610,-500.0,0.00010547,2]
[346896495,1735347043619,-500.0,0.00010547,2]
[346896497,1735347043628,-500.0,0.00010547,2]
[346896499,1735347043638,-1000.0,0.00010547,2]
[346896501,1735347043648,-500.0,0.00010548,2]
[346896503,1735347043657,-836.56,0.00010548,2]
[346896505,1735347043666,-500.0,0.00010549,2]
[346896507,1735347043676,-500.0,0.00010562,2]
[346896509,1735347043685,-500.0,0.00010601,2]
[346896511,1735347043694,-468.12348219,0.00010601,2]
[346896513,1735347043703,-662.92,0.00010819,2]
[346896515,1735347043713,-500.0,0.00010819,2]
[346896517,1735347043722,-500.0,0.00010819,2]
[346896519,1735347043731,-500.0,0.00010819,2]
[346896521,1735347043741,-500.0,0.00010819,2]
[346896523,1735347043750,-507.44,0.00010819,2]
[346896525,1735347043759,-500.0,0.00010819,2]
[346896527,1735347043769,-500.0,0.00010819,2]
[346896529,1735347043778,-500.0,0.0001082,2]
[346896531,1735347043787,-439.08,0.0001082,2]
[346896533,1735347043797,-500.0,0.0001082,2]
[346896535,1735347043806,-500.0,0.0001082,2]
[346896537,1735347043816,-500.0,0.0001082,2]
[346896539,1735347043826,-500.0,0.0001082,2]
[346896541,1735347043836,-500.0,0.0001082,2]
[346896543,1735347043845,-500.0,0.0001082,2]
[346896545,1735347043854,-500.0,0.0001082,2]
[346896547,1735347043864,-500.0,0.0001082,2]
[346896549,1735347043873,-500.0,0.0001082,2]
[346896551,1735347043883,-340.99,0.0001082,2]
[346896554,1735347043893,-5720.24,0.0001082,2]
[346896556,1735347043902,-500.0,0.0001082,2]
[346896557,1735347043911,-500.0,0.0001082,2]
[346896559,1735347043920,-1441.32,0.0001082,2]
[346896561,1735347043929,-500.0,0.00010821,2]
[346896563,1735347043938,-257.09,0.00010821,2]
[346896565,1735347043948,-1000.0,0.00010821,2]
[346896567,1735347043957,-500.0,0.00010822,2]
[346896569,1735347043966,-836.56,0.00010822,2]
[346896571,1735347043975,-500.0,0.00010823,2]
[346896573,1735347043984,-500.0,0.00010844,2]
[346896575,1735347043993,-2998.8236256,0.00010959,2]
[346896577,1735347044003,-420.0,0.00010997,2]
[346896579,1735347044012,-662.92,0.00011093,2]
[346896581,1735347044022,-500.0,0.00011093,2]
[346896583,1735347044031,-500.0,0.00011093,2]
[346896585,1735347044041,-500.0,0.00011093,2]
[346896587,1735347044050,-500.0,0.00011093,2]
[346896589,1735347044059,-507.44,0.00011093,2]
[346896591,1735347044068,-500.0,0.00011093,2]
[346896593,1735347044078,-243.75782681,0.00011093,2]
[346896595,1735347044086,-500.0,0.00011094,2]
[346896597,1735347044095,-247.77,0.00011094,2]
[346896599,1735347044105,-500.0,0.00011094,2]
[346896601,1735347044114,-500.0,0.00011094,2]
[346896603,1735347044123,-500.0,0.00011094,2]
[346896605,1735347044132,-500.0,0.00011094,2]
[346896607,1735347044142,-5720.24,0.00011094,2]
[346896609,1735347044151,-500.0,0.00011094,2]
[346896611,1735347044161,-500.0,0.00011094,2]
[346896613,1735347044170,-1441.32,0.00011094,2]
[346896615,1735347044179,-500.0,0.00011095,2]
[346896617,1735347044188,-500.0,0.00011095,2]
[346896619,1735347044197,-500.0,0.00011095,2]
[346896621,1735347044207,-500.0,0.00011095,2]
[346896623,1735347044215,-500.0,0.00011095,2]
[346896625,1735347044225,-500.0,0.00011095,2]
[346896627,1735347044234,-500.0,0.00011095,2]
[346896629,1735347044243,-500.0,0.00011095,2]
[346896631,1735347044252,-500.0,0.00011095,2]
[346896633,1735347044262,-500.0,0.00011095,2]
[346896635,1735347044271,-500.0,0.00011095,2]
[346896637,1735347044280,-500.0,0.00011095,2]
[346896639,1735347044290,-500.0,0.00011095,2]
[346896641,1735347044301,-1000.0,0.00011095,2]
[346896643,1735347044310,-500.0,0.00011095,2]
[346896645,1735347044320,-836.56,0.00011096,2]
[346896647,1735347044329,-500.0,0.00011097,2]
[346896649,1735347044338,-1000.0,0.0001111,2]
[346896651,1735347044348,-1000.0,0.00011149,2]
[346896653,1735347044358,-281.36215528,0.00011332,2]
[346896655,1735347044367,-500.0,0.00011332,2]
[346896657,1735347044377,-662.92,0.00011367,2]
[346896660,1735347044387,-500.0,0.00011367,2]
[346896662,1735347044396,-500.0,0.00011367,2]
[346896664,1735347044406,-500.0,0.00011367,2]
[346896666,1735347044415,-507.44,0.00011367,2]
[346896668,1735347044425,-500.0,0.00011367,2]
[346896670,1735347044434,-500.0,0.00011368,2]
[346896672,1735347044443,-220.26,0.00011368,2]
[346896674,1735347044453,-500.0,0.00011368,2]
[346896676,1735347044462,-500.0,0.00011368,2]
[346896678,1735347044471,-500.0,0.00011368,2]
[346896680,1735347044480,-5720.24,0.00011368,2]
[346896682,1735347044489,-500.0,0.00011368,2]
[346896684,1735347044499,-1441.32,0.00011368,2]
[346896686,1735347044508,-500.0,0.00011369,2]
[346896688,1735347044517,-500.0,0.00011369,2]
[346896690,1735347044527,-500.0,0.00011369,2]
[346896692,1735347044536,-500.0,0.00011369,2]
[346896694,1735347044545,-500.0,0.00011369,2]
[346896696,1735347044555,-500.0,0.00011369,2]
[346896698,1735347044564,-500.0,0.00011369,2]
[346896700,1735347044573,-576.72226685,0.00011369,2]
[346896702,1735347044582,-500.0,0.00011369,2]
[346896704,1735347044591,-836.56,0.0001137,2]
[346896706,1735347044600,-500.0,0.00011371,2]
[346896708,1735347044610,-662.92,0.00011641,2]
[346896710,1735347044619,-500.0,0.00011641,2]
[346896712,1735347044628,-500.0,0.00011641,2]
[346896714,1735347044639,-500.0,0.00011641,2]
[346896716,1735347044648,-507.44,0.00011641,2]
[346896718,1735347044657,-500.0,0.00011641,2]
[346896720,1735347044666,-500.0,0.00011642,2]
[346896722,1735347044676,-500.0,0.00011642,2]
[346896724,1735347044685,-500.0,0.00011642,2]
[346896726,1735347044694,-5720.24,0.00011642,2]
[346896728,1735347044703,-500.0,0.00011642,2]
[346896730,1735347044712,-1441.32,0.00011642,2]
[346896732,1735347044721,-500.0,0.00011643,2]
[346896734,1735347044731,-500.0,0.00011643,2]
[346896736,1735347044740,-500.0,0.00011643,2]
[346896738,1735347044749,-500.0,0.00011643,2]
[346896740,1735347044759,-500.0,0.00011643,2]
[346896742,1735347044768,-500.0,0.00011643,2]
[346896744,1735347044777,-500.0,0.00011643,2]
[346896746,1735347044786,-836.56,0.00011644,2]
[346896748,1735347044796,-499.54,0.00011645,2]
[346896750,1735347044805,-173.47059155,0.00011717,2]
[346896752,1735347044814,-662.92,0.00011915,2]
[346896754,1735347044824,-331.41,0.00011915,2]
[346896766,1735347044920,-500.0,0.00011915,2]
[346896768,1735347044930,-500.0,0.00011915,2]
[346896770,1735347044940,-507.44,0.00011915,2]
[346896772,1735347044950,-500.0,0.00011915,2]
[346896774,1735347044959,-210.75,0.00011916,2]
[346896776,1735347044968,-500.0,0.00011916,2]
[346896778,1735347044977,-500.0,0.00011916,2]
[346896780,1735347044987,-5720.24,0.00011916,2]
[346896782,1735347044998,-1441.32,0.00011916,2]
[346896784,1735347045007,-500.0,0.00011917,2]
[346896786,1735347045016,-429.0696,0.00011917,2]
[346896788,1735347045026,-500.0,0.00011917,2]
[346896790,1735347045035,-500.0,0.00011917,2]
[346896792,1735347045044,-836.56,0.00011918,2]
[346896794,1735347045054,-587.0,0.00012096,2]
[346896796,1735347045063,-1500.0,0.00012151,2]
[346896798,1735347045073,-662.92,0.00012189,2]
[346896800,1735347045082,-500.0,0.00012189,2]
[346896802,1735347045091,-500.0,0.00012189,2]
[346896804,1735347045101,-507.44,0.00012189,2]
[346896806,1735347045110,-444.91,0.0001219,2]
[346896808,1735347045119,-5720.24,0.0001219,2]
[346896810,1735347045128,-1441.32,0.0001219,2]
[346896812,1735347045138,-500.0,0.00012191,2]
[346896814,1735347045147,-500.0,0.00012191,2]
[346896816,1735347045155,-836.56,0.00012192,2]
[346896818,1735347045165,-662.92,0.00012463,2]
[346896820,1735347045175,-500.0,0.00012463,2]
[346896822,1735347045184,-507.44,0.00012463,2]
[346896824,1735347045193,-1625.23946994,0.00012464,2]
[346896899,1735347045887,-250.0,0.00010271,2]
[346896901,1735347045896,-4095.00053006,0.00012464,2]
[346896903,1735347045905,-1441.32,0.00012464,2]
[346896905,1735347045915,-500.0,0.00012465,2]
[346896907,1735347045924,-500.0,0.00012465,2]
[346896909,1735347045934,-836.56,0.00012466,2]
[346896911,1735347045944,-662.92,0.00012737,2]
[346896913,1735347045953,-500.0,0.00012737,2]
[346896915,1735347045963,-507.44,0.00012737,2]
[346896917,1735347045972,-5720.24,0.00012738,2]
[346896919,1735347045981,-1441.32,0.00012738,2]
[346896921,1735347045990,-616.7924543,0.00012739,2]
[346896923,1735347045999,-500.0,0.00012739,2]
[346896925,1735347046009,-836.56,0.0001274,2]
[346896927,1735347046018,-492.30720982,0.000129,2]
[346896929,1735347046028,-492.30720976,0.000129,2]
[346896931,1735347046038,-492.30720976,0.000129,2]
[346896933,1735347046048,-662.92,0.00013011,2]
[346896935,1735347046057,-500.0,0.00013011,2]
[346896938,1735347046068,-507.44,0.00013011,2]
[346896940,1735347046078,-5720.24,0.00013012,2]
[346896942,1735347046088,-1441.32,0.00013012,2]
[346896944,1735347046097,-500.0,0.00013013,2]
[346896946,1735347046106,-836.56,0.00013014,2]
[346896948,1735347046115,-662.92,0.00013285,2]
[346896950,1735347046125,-541.07,0.00013285,2]
[346896952,1735347046135,-507.44,0.00013285,2]
[346896954,1735347046144,-5720.24,0.00013286,2]
[346896956,1735347046153,-1441.32,0.00013286,2]
[346896958,1735347046162,-500.0,0.00013287,2]
[346896960,1735347046172,-836.56,0.00013288,2]
[346896962,1735347046181,-823.0,0.00013306,2]
[346896964,1735347046190,-152.0,0.00013548,2]
[346896966,1735347046199,-662.92,0.00013559,2]
[346896968,1735347046210,-507.44,0.00013559,2]
[346896970,1735347046219,-5720.24,0.0001356,2]
[346896972,1735347046228,-1441.32,0.0001356,2]
[346896973,1735347046237,-429.9753863,0.00013561,2]
[346896984,1735347046358,-500.0,9.724e-05,2]
[346896985,1735347046367,-70.0246137,0.00013561,2]
[346896986,1735347046376,-836.56,0.00013562,2]
[346896987,1735347046385,-8978.07032966,0.00013616,2]
[346896988,1735347046395,-540.819905,0.00013699,2]
[346896989,1735347046404,-500.0,0.00013699,2]
[346896990,1735347046414,-500.0,0.00013699,2]
[346896991,1735347046423,-500.0,0.00013699,2]
[346896992,1735347046432,-500.0,0.00013699,2]
[346896993,1735347046441,-500.0,0.00013699,2]
[346896994,1735347046450,-500.0,0.00013699,2]
[346896995,1735347046462,-500.0,0.00013699,2]
[346896996,1735347046471,-537.445,0.00013699,2]
[346896997,1735347046480,-500.0,0.00013699,2]
[346896998,1735347046489,-500.0,0.00013699,2]
[346896999,1735347046498,-500.0,0.00013699,2]
[346897001,1735347046508,-500.0,0.00013699,2]
[346897003,1735347046517,-500.0,0.00013699,2]
[346897005,1735347046526,-500.0,0.00013699,2]
[346897007,1735347046536,-500.0,0.00013699,2]
[346897009,1735347046545,-500.0,0.00013699,2]
[346897011,1735347046554,-500.0,0.00013699,2]
[346897013,1735347046564,-500.0,0.00013699,2]
[346897015,1735347046574,-500.0,0.00013699,2]
[346897017,1735347046583,-500.0,0.00013699,2]
[346897019,1735347046592,-500.0,0.00013699,2]
[346897021,1735347046602,-500.0,0.00013699,2]
[346897023,1735347046612,-500.0,0.00013699,2]
[346897025,1735347046621,-500.0,0.00013699,2]
[346897027,1735347046631,-500.0,0.00013699,2]
[346897029,1735347046639,-500.0,0.00013699,2]
[346897031,1735347046648,-421.8642933,0.00013699,2]
[346897161,1735347269939,24900.0,8.725e-05,2]
[346897165,1735347428276,250.0,8.725e-05,2]
[346897166,1735347721939,314.8121914,8.973e-05,2]
[346897167,1735347888842,314.8121914,8.973e-05,2]
[346897168,1735348033132,-257.42860859,9.624e-05,2]
[346897169,1735348036122,-629.5248862,9.624e-05,2]
[346897170,1735348042096,-61.91214783,9.624e-05,2]
[346897171,1735348042119,-125.16781543,9.72e-05,2]
[346897172,1735348042150,-174.83218457,9.72e-05,2]
[346897173,1735348042172,-20.04976853,9.721e-05,2]
[346897174,1735348043156,-159.36915342,9.721e-05,2]
[346897175,1735348053153,-320.58107805,9.721e-05,2]
[346897176,1735348053176,-500.0,9.721e-05,2]
[346897177,1735348053201,-500.0,9.721e-05,2]
[346897178,1735348053225,-500.0,9.721e-05,2]
[346897179,1735348053248,-398.1472273,9.721e-05,2]
[346897180,1735348142989,24900.0,8.86e-05,2]
[346897181,1735348147149,-101.8527727,9.721e-05,2]
[346897182,1735348147172,-500.0,9.721e-05,2]
[346897183,1735348147194,-500.0,9.721e-05,2]
[346897184,1735348147217,-549.13,9.721e-05,2]
[346897185,1735348147239,-500.0,9.721e-05,2]
[346897186,1735348147262,-500.0,9.721e-05,2]
[346897187,1735348147285,-500.0,9.721e-05,2]
[346897188,1735348147308,-500.0,9.721e-05,2]
[346897189,1735348147330,-500.0,9.721e-05,2]
[346897190,1735348147351,-598.73,9.721e-05,2]
[346897191,1735348147372,-500.0,9.721e-05,2]
[346897192,1735348147393,-500.0,9.721e-05,2]
[346897193,1735348147414,-500.0,9.721e-05,2]
[346897194,1735348147436,-500.0,9.721e-05,2]
[346897195,1735348147458,-500.0,9.721e-05,2]
[346897196,1735348147479,-315.3754669,9.721e-05,2]
[346897197,1735348148084,-268.02562052,9.721e-05,2]
[346897198,1735348148107,-31.64545634,9.721e-05,2]
[346897199,1735348159136,-468.35454366,9.721e-05,2]
[346897200,1735348159158,-500.0,9.721e-05,2]
[346897201,1735348159180,-201.46846551,9.721e-05,2]
[346897202,1735348159202,-500.0,9.721e-05,2]
[346897203,1735348159226,-500.0,9.721e-05,2]
[346897204,1735348159249,-500.0,9.721e-05,2]
[346897205,1735348159271,-500.0,9.721e-05,2]
[346897206,1735348159294,-270.08645503,9.721e-05,2]
[346897207,1735348165117,-500.0,9.721e-05,2]
[346897208,1735348165138,-500.0,9.721e-05,2]
[346897209,1735348165158,-500.0,9.721e-05,2]
[346897210,1735348165179,-229.91354497,9.721e-05,2]
[346897211,1735348165200,-500.0,9.721e-05,2]
[346897212,1735348165221,-500.0,9.721e-05,2]
[346897213,1735348165242,-500.0,9.721e-05,2]
[346897214,1735348165262,-581.02330242,9.721e-05,2]
[346897215,1735348165284,-488.82693332,9.721e-05,2]
[346897216,1735348165304,-500.0,9.721e-05,2]
[346897217,1735348165325,-500.0,9.721e-05,2]
[346897218,1735348165344,-500.0,9.721e-05,2]
[346897219,1735348165364,-500.0,9.721e-05,2]
[346897220,1735348165385,-500.0,9.721e-05,2]
[346897221,1735348165407,-500.0,9.721e-05,2]
[346897222,1735348165545,-532.58,9.722e-05,2]
[346897223,1735348165571,-500.0,9.722e-05,2]
[346897224,1735348165593,-500.0,9.722e-05,2]
[346897225,1735348165614,-500.0,9.722e-05,2]
[346897226,1735348165635,-500.0,9.722e-05,2]
[346897227,1735348165658,-500.0,9.722e-05,2]
[346897228,1735348165678,-564.021687,9.722e-05,2]
[346897229,1735348165699,-500.0,9.722e-05,2]
[346897230,1735348165721,-500.0,9.722e-05,2]
[346897231,1735348165747,-500.0,9.722e-05,2]
[346897232,1735348165770,-505.01891595,9.722e-05,2]
[346897233,1735348165793,-500.0,9.722e-05,2]
[346897234,1735348165813,-500.0,9.722e-05,2]
[346897235,1735348165835,-500.0,9.722e-05,2]
[346897236,1735348165859,-500.0,9.722e-05,2]
[346897237,1735348165886,-603.40330486,9.722e-05,2]
[346897238,1735348165911,-500.0,9.722e-05,2]
[346897239,1735348165933,-561.23852676,9.722e-05,2]
[346897240,1735348165956,-500.0,9.722e-05,2]
[346897241,1735348165977,-475.51364346,9.722e-05,2]
[346897242,1735348165998,-500.0,9.722e-05,2]
[346897243,1735348166018,-500.0,9.722e-05,2]
[346897244,1735348166040,-500.0,9.722e-05,2]
[346897245,1735348166060,-500.0,9.722e-05,2]
[346897246,1735348166080,-500.0,9.722e-05,2]
[346897247,1735348166104,-500.0,9.722e-05,2]
[346897248,1735348166125,-500.0,9.722e-05,2]
[346897249,1735348166149,-382.05135297,9.722e-05,2]
[346897250,1735348166170,-500.0,9.722e-05,2]
[346897251,1735348166191,-500.0,9.722e-05,2]
[346897252,1735348166211,-500.0,9.722e-05,2]
[346897253,1735348166231,-500.0,9.722e-05,2]
[346897254,1735348166251,-500.0,9.722e-05,2]
[346897255,1735348166275,-500.0,9.722e-05,2]
[346897256,1735348166297,-500.0,9.722e-05,2]